fUST/lending_fUST_20250303
["ID","MTS","AMOUNT","RATE_DAILY","PERIOD"]
[355195595,1740992446165,-500.0,0.00048597,30]
[355195596,1740992446192,-500.0,0.00048597,30]
[355195597,1740992446216,-494.93336977,0.00048597,30]
[355195598,1740992446244,-500.0,0.00048597,30]
[355195599,1740992446272,-1500.0,0.00048597,120]
[355195600,1740992446298,-1123.1553688,0.00048597,35]
[355195601,1740992446324,-2000.0,0.00048597,30]
[355195602,1740992446348,-2000.0,0.00048597,30]
[355195603,1740992446371,-858.8,0.00048597,30]
[355195604,1740992446394,-844.25813531,0.00048597,120]
[355195605,1740992446418,-6226.66,0.00048597,120]
[355195606,1740992446442,-3405.61253937,0.00048597,120]
[355195607,1740992446466,-5798.66333558,0.00048597,120]
[355195608,1740992446488,-1018.00946073,0.00048597,32]
[355195609,1740992446512,-900.52683511,0.00048597,120]
[355195610,1740992446536,-1753.36821722,0.00048597,30]
[355195611,1740992446560,-1863.16606272,0.00048597,120]
[355195612,1740992446588,-676.76701097,0.00048597,120]
[355195613,1740992446615,-3534.47620478,0.00048597,60]
[355195614,1740992446642,-240.82074905,0.00048597,120]
[355195615,1740992446670,-1111.4093379,0.00048597,120]
[355195616,1740992446698,-931.50554867,0.00048597,120]
[355195617,1740992446723,-2000.0,0.00048597,120]
[355195618,1740992446748,-1079.6145833,0.00048597,120]
[355195619,1740992446772,-1900.51583948,0.00048597,30]
[355195620,1740992446796,-236.21454118,0.00048597,30]
[355195621,1740992446823,-934.08139608,0.00048597,120]
[355195622,1740992446847,-1587.9055283,0.00048597,120]
[355195623,1740992446873,-1035.34606916,0.00048597,120]
[355195624,1740992446898,-2535.68487041,0.00048597,120]
[355195625,1740992446922,-990.65033744,0.00048597,120]
[355195626,1740992446948,-1682.09824733,0.00048597,120]
[355195627,1740992446975,-438.78724907,0.00048597,120]
[355195628,1740992446999,-1727.92872042,0.00048597,120]
[355195629,1740992447024,-266.89643382,0.00048597,120]
[355195630,1740992447049,-1006.55988353,0.00048597,120]
[355195631,1740992447079,-375.55132337,0.00048597,120]
[355195632,1740992447104,-2009.399999,0.00048597,120]
[355195633,1740992447128,-2505.89845363,0.00048597,120]
[355195634,1740992495702,254.50279008,0.00028,14]
[355195635,1740992497610,500.0,0.00028,14]
[355195636,1740992511862,500.0,0.00028,14]
[355195638,1740992534834,300.0,0.00048597,60]
[355195639,1740992535121,300.0,0.00048597,60]
[355195640,1740992535818,400.0,0.00048597,60]
[355195645,1740992564827,1154.2,0.00048597,30]
[355195646,1740992631817,1500.0,0.00048597,120]
[355195647,1740992633463,300.0,0.000273,13]
[355195650,1740992805702,152.87,0.000272,31]
[355195651,1740992829359,500.0,0.00028,14]
[355195652,1740992838329,269.36172884,0.00028,14]
[355195654,1740992931825,150.0,0.00021,2]
[355195695,1740993031986,-150.0,0.000228,2]
[355195696,1740993031996,-300.0,0.00024315,2]
[355195698,1740993032007,-5027.52824769,0.00024315,2]
[355195700,1740993032018,-5331.8391498,0.00024316,2]
[355195702,1740993032029,-150.0,0.00024415,2]
[355195703,1740993032039,-2351.23009999,0.00024873,2]
[355195707,1740993032146,-2031.41035538,0.00024873,2]
[355195745,1740993037830,-8200.1,0.00024873,2]
[355195746,1740993037843,-13295.70737453,0.00024873,2]
[355195747,1740993037855,-395.3686928,0.00024873,2]
[355195748,1740993037865,-395.36869277,0.0002488,2]
[355195749,1740993037875,-395.36869277,0.00024887,2]
[355195750,1740993037889,-395.36869277,0.00024893,2]
[355195751,1740993037900,-3000.0,0.000249,2]
[355195752,1740993037911,-395.36869277,0.000249,2]
[355195753,1740993037921,-1727.44916159,0.000249,4]
[355195765,1740993038057,-280.24941228,0.000249,4]
[355195777,1740993043275,-522.54942977,0.000249,4]
[355195778,1740993043285,-497.96025832,0.00024972,2]
[355195779,1740993043295,-417.66824681,0.00024972,2]
[355195780,1740993043305,-342.0659905,0.00024973,3]
[355195781,1740993043315,-555.7560746,0.00024973,3]
[355195809,1740993044087,-2569.84179744,0.00024973,3]
[355195810,1740993044097,-500.0,0.00024973,2]
[355195811,1740993044107,-500.0,0.00024973,2]
[355195812,1740993044116,-500.0,0.00024973,2]
[355195813,1740993044126,-500.0,0.00024973,2]
[355195814,1740993044138,-500.0,0.00024973,2]
[355195815,1740993044148,-6429.15819963,0.00024973,2]
[355195816,1740993044168,-8003.56962152,0.00024973,2]
[355195836,1740993045882,-5924.67234,0.00024973,2]
[355195841,1740993336359,-150.0,0.00024873,2]
[355195932,1740994116137,939.92042101,0.00048281,90]
[355195987,1740994232155,-155.282992,0.000245,2]
[355195989,1740994232166,-155.282992,0.00024696,3]
[355195991,1740994232176,-202.20007865,0.00024872,2]
[355195994,1740994232190,-2024.58143023,0.00024873,2]
[355195996,1740994232200,-1305.39931352,0.00024873,2]
[355195998,1740994232210,-300.0,0.00024899,2]
[355196000,1740994232221,-447.70031961,0.000249,2]
[355196096,1740994238014,-343.13739693,0.000249,2]
[355196350,1740994691022,5000.0,0.00048245,120]
[355196354,1740994703153,5000.0,0.00048245,120]
[355196357,1740994714201,5000.0,0.00048245,120]
[355196359,1740994724239,5000.0,0.00048245,120]
[355196360,1740994734387,5000.0,0.00048245,120]
[355196361,1740994743638,5000.0,0.00048245,120]
[355196381,1740995268123,4829.06665738,0.00048281,30]
[355196389,1740995379179,4895.7941,0.00048282,30]
[355196401,1740995432343,-1368.72767456,0.00024,2]
[355196402,1740995432353,-165.9499254,0.00024872,2]
[355196403,1740995432363,-150.0,0.00024872,2]
[355196404,1740995432371,-300.0,0.00024899,2]
[355196405,1740995432381,-1199.7069135,0.000249,7]
[355196406,1740995432391,-3000.0,0.000249,2]
[355196407,1740995432400,-2445.90640348,0.000249,4]
[355196408,1740995432410,-292.36777277,0.00024971,2]
[355196409,1740995432419,-348.57218083,0.00024971,2]
[355196410,1740995432428,-500.0,0.00024971,2]
[355196411,1740995432438,-500.0,0.00024971,2]
[355196412,1740995432448,-500.0,0.00024971,2]
[355196413,1740995432457,-551.39166933,0.00024971,2]
[355196414,1740995432466,-160.845,0.00024971,8]
[355196415,1740995432476,-171.03299525,0.00024972,3]
[355196416,1740995432486,-1562.79893602,0.00024972,3]
[355196417,1740995432495,-4474.77374283,0.00024972,2]
[355196511,1740995443313,-1166.70000005,0.00024972,2]
[355196868,1740995446550,-169999.52625712,0.00024972,2]
[355196870,1740995446560,-5000.0,0.00024972,2]
[355196872,1740995446570,-1582.017522,0.00024972,2]
[355196874,1740995446579,-500.0,0.00024973,2]
[355196876,1740995446589,-507.33294914,0.00024973,2]
[355196878,1740995446599,-500.92560493,0.00024973,2]
[355196880,1740995446608,-500.0,0.00024973,2]
[355196883,1740995446618,-500.0,0.00024973,2]
[355196885,1740995446628,-500.0,0.00024973,2]
[355196887,1740995446637,-499.71,0.00024973,2]
[355196889,1740995446646,-500.0,0.00024973,2]
[355196891,1740995446655,-500.0,0.00024973,2]
[355196893,1740995446665,-2425.31516266,0.00024973,2]
[355197208,1740996063666,489585.75317011,0.00048268,30]
[355197210,1740996109038,500.0,0.00021,10]
[355197218,1740996373261,-500.0,0.0004827,30]
[355197219,1740996373285,-500.0,0.0004827,30]
[355197227,1740996443705,338115.403133,0.0004827,30]
[355197233,1740996516397,10414.24682989,0.0004827,30]
[355197234,1740996517976,1002.0,0.00021,10]
[355197694,1740996643581,-150.0,0.00024404,2]
[355197697,1740996643591,-424.02950251,0.00024871,2]
[355197699,1740996643602,-201.21444595,0.00024871,2]
[355197701,1740996643614,-98.78555405,0.00024871,2]
[355197703,1740996643623,-1080.74533895,0.00024872,2]
[355197705,1740996643639,-14465.43824356,0.00024872,2]
[355197707,1740996643649,-3000.0,0.000249,2]
[355197709,1740996643658,-2364.37619005,0.000249,4]
[355197711,1740996643669,-500.0,0.00024972,2]
[355197713,1740996643678,-500.0,0.00024972,2]
[355197715,1740996643688,-500.0,0.00024972,2]
[355197717,1740996643697,-500.0,0.00024972,2]
[355197720,1740996643707,-500.0,0.00024972,2]
[355197723,1740996643717,-500.0,0.00024972,2]
[355197726,1740996643727,-500.0,0.00024972,2]
[355197729,1740996643736,-500.0,0.00024972,2]
[355197732,1740996643746,-500.0,0.00024972,2]
[355197735,1740996643755,-500.0,0.00024972,2]
[355197738,1740996643765,-587.36067492,0.00024972,2]
[355197741,1740996643775,-500.0,0.00024972,2]
[355197745,1740996643786,-500.0,0.00024972,2]
[355197748,1740996643796,-500.0,0.00024972,2]
[355197751,1740996643806,-500.0,0.00024972,2]
[355197754,1740996643817,-500.0,0.00024972,2]
[355197757,1740996643826,-500.0,0.00024972,2]
[355197760,1740996643843,-500.0,0.00024972,2]
[355197762,1740996643853,-500.0,0.00024972,2]
[355197765,1740996643863,-500.0,0.00024972,2]
[355197768,1740996643873,-500.0,0.00024972,2]
[355197771,1740996643883,-500.0,0.00024972,2]
[355197774,1740996643893,-500.0,0.00024972,2]
[355197777,1740996643903,-286.24607425,0.00024972,2]
[355197780,1740996643913,-204.65744094,0.00024972,2]
[355197783,1740996643923,-244.00052658,0.00024972,2]
[355197786,1740996643933,-160.84569169,0.00024972,8]
[355197789,1740996643943,-500.0,0.00024973,2]
[355197792,1740996643952,-8744.27515801,0.00024973,2]
[355197948,1740996646467,-90446.4155,0.00024973,2]
[355197955,1740996646520,-400.5481304,0.00024973,2]
[355198048,1740996683799,-3000.0,0.000249,2]
[355198049,1740996683820,-4898.80824165,0.000249,2]
[355198050,1740996683841,-200.0,0.00024972,2]
[355198051,1740996683865,-42586.42544264,0.00024973,2]
[355198052,1740996683885,-171.03299525,0.00025,5]
[355198053,1740996683907,-781.39946801,0.00025,5]
[355198054,1740996683929,-209.69,0.00025,7]
[355198055,1740996683950,-155.282993,0.00025,2]
[355198056,1740996683972,-87997.36085945,0.00025,2]
[355198060,1740996721718,476.32328102,0.0004827,30]
[355198062,1740996747465,370.98521224,0.0002,21]
[355198066,1740996805095,-151.0,0.00025,7]
[355198067,1740996805117,-2500.967777,0.00025,7]
[355198068,1740996805139,-2500.967777,0.00025,7]
[355198069,1740996805161,-246.59,0.00025,7]
[355198072,1740996817446,-390.699734,0.00025,5]
[355198073,1740996824488,-2285.56365014,0.000249,4]
[355198075,1740996838667,-300.0,0.00024592,2]
[355198076,1740996838690,-24900.0,0.00024593,2]
[355198077,1740996838712,-371.02581467,0.000249,2]
[355198078,1740996838736,-3000.0,0.000249,2]
[355198079,1740996838758,-13353.18524719,0.000249,2]
[355198148,1740996887670,-300.0,0.00024899,2]
[355198149,1740996887693,-500.0,0.00024899,2]
[355198150,1740996887716,-500.0,0.00024899,2]
[355198151,1740996887739,-319.2896388,0.00024899,2]
[355198152,1740996887760,-22380.7103612,0.000249,2]
[355198153,1740996896139,-200.0,0.000249,2]
[355198154,1740996912036,-150.0,0.00024899,2]
[355198159,1740997059406,-221.93,0.00025,7]
[355198160,1740997086634,-300.0,0.00024523,2]
[355198161,1740997086656,-397.0,0.00024524,2]
[355198162,1740997086677,-150.0,0.00024524,2]
[355198163,1740997086702,-1955.0,0.00024524,2]
[355198164,1740997086723,-539.0,0.00024524,2]
[355198165,1740997086745,-2280.0,0.00024524,2]
[355198166,1740997086767,-72700.69523626,0.000249,2]
[355198167,1740997086789,-3000.0,0.000249,2]
[355198168,1740997086810,-4408.92741753,0.000249,2]
[355198169,1740997086830,-500.0,0.00024973,2]
[355198170,1740997086853,-195.349867,0.00025,5]
[355198171,1740997086874,-113352.09747921,0.00025,2]
[355198172,1740997121208,-200.0,0.0002584,17]
[355198173,1740997131279,150.0,0.00048273,120]
[355198175,1740997142789,-199800.0,0.00025,2]
[355198177,1740997221582,5866.99,0.00048253,30]
[355198178,1740997323191,2566.89,0.00048225,30]
[355198179,1740997330617,113352.09747921,0.00048225,30]
[355198184,1740997386621,-199.73,0.00025,7]
[355198185,1740997399703,-397.0,0.00024524,2]
[355198186,1740997399727,-170.8003686,0.00024899,2]
[355198187,1740997399754,-298.38065804,0.00024899,2]
[355198188,1740997399776,-300.0,0.00024899,2]
[355198189,1740997399799,-3000.0,0.000249,2]
[355198190,1740997399822,-324.64758788,0.000249,2]
[355198191,1740997399843,-36309.44138548,0.000249,2]
[355198194,1740997448129,500.0,0.00048225,30]
[355198196,1740997462302,699.97,0.00048225,30]
[355198198,1740997497938,1000.0,0.00048225,30]
[355198236,1740997778410,1992.01,0.00048247,30]
[355198240,1740997811858,-397.0,0.00024524,2]
[355198241,1740997811879,-160.0,0.00024773,2]
[355198242,1740997812042,-284.06663936,0.000248,2]
[355198243,1740997812062,-500.0,0.00024873,2]
[355198244,1740997812084,-500.0,0.00024873,2]
[355198245,1740997812105,-500.0,0.00024873,2]
[355198246,1740997812125,-151.71,0.0002489,2]
[355198247,1740997812149,-151.71,0.0002489,2]
[355198248,1740997812169,-151.71,0.0002489,2]
[355198249,1740997812193,-27203.80336064,0.000249,2]
[355198306,1740997831980,-500.0,0.00024873,2]
[355198308,1740997831989,-564.14077734,0.00024873,2]
[355198310,1740997831999,-103.15522009,0.00024873,2]
[355198419,1740997840048,-396.84477991,0.00024873,2]
[355198420,1740997840058,-500.0,0.00024873,2]
[355198421,1740997840067,-500.0,0.00024873,2]
[355198422,1740997840076,-4304.81336911,0.000249,2]
[355198423,1740997840570,-36135.73152086,0.000249,2]
[355198536,1740997845725,-24900.0,0.00023968,2]
[355198537,1740997845735,-5629.91859682,0.000249,2]
[355198538,1740997845782,-2291.30945407,0.000249,2]
[355198557,1740998061078,1500.0,0.00048245,120]
[355198560,1740998183994,409.16986707,0.00048245,30]
[355198562,1740998200108,10000.0,0.00048245,30]
[355198563,1740998203584,10000.0,0.00048245,30]
[355198564,1740998204945,10000.0,0.00048245,30]
[355198565,1740998216128,963.08255829,0.00048245,30]
[355198594,1740998936799,151.0,0.00048243,120]
[355198595,1740998969001,89999.0,0.00048243,30]
[355198626,1740999038015,-1010.56105703,0.00023815,2]
[355198922,1740999116174,1500.0,0.00021,2]
[355198950,1741000179337,843.81685152,0.00048287,30]
[355199030,1741000232599,-24900.0,0.00023627,2]
[355199032,1741000232609,-1033.0255911,0.00023748,2]
[355199034,1741000232618,-300.0,0.00023814,2]
[355199036,1741000232627,-160.0,0.00024245,2]
[355199038,1741000232636,-248.55830944,0.0002453,2]
[355199040,1741000232646,-150.0,0.0002463,2]
[355199042,1741000232655,-1955.0,0.0002463,2]
[355199064,1741000232802,-539.0,0.0002463,2]
[355199067,1741000232813,-2278.0,0.0002463,2]
[355199069,1741000232822,-402.365,0.0002463,2]
[355199070,1741000232832,-500.0,0.00024788,2]
[355199072,1741000232841,-353.71502754,0.00024788,2]
[355199073,1741000232850,-199.92710702,0.00024788,2]
[355199074,1741000232860,-500.0,0.00024788,2]
[355199075,1741000232869,-500.0,0.00024788,2]
[355199076,1741000232879,-500.0,0.00024788,2]
[355199077,1741000232889,-500.0,0.00024788,2]
[355199078,1741000232898,-268.93,0.00024788,2]
[355199079,1741000232906,-500.0,0.00024788,2]
[355199080,1741000232915,-500.0,0.00024788,2]
[355199081,1741000232925,-500.0,0.00024788,2]
[355199082,1741000232935,-500.0,0.00024788,2]
[355199083,1741000232944,-500.0,0.00024788,2]
[355199084,1741000232953,-500.0,0.00024788,2]
[355199085,1741000232963,-350.0,0.00024788,2]
[355199086,1741000232972,-500.0,0.00024788,2]
[355199087,1741000232981,-500.0,0.00024788,2]
[355199088,1741000232990,-500.0,0.00024788,2]
[355199089,1741000232999,-500.0,0.00024788,2]
[355199090,1741000233009,-500.0,0.00024788,2]
[355199091,1741000233019,-500.0,0.00024788,2]
[355199092,1741000233028,-500.0,0.00024788,2]
[355199093,1741000233039,-500.0,0.00024788,2]
[355199094,1741000233050,-500.0,0.00024788,2]
[355199095,1741000233060,-500.0,0.00024788,2]
[355199096,1741000233070,-500.0,0.00024788,2]
[355199097,1741000233079,-500.0,0.00024788,2]
[355199098,1741000233089,-500.0,0.00024788,2]
[355199099,1741000233101,-500.0,0.00024788,2]
[355199100,1741000233112,-230.94,0.00024789,2]
[355199101,1741000233124,-230.94,0.00024789,2]
[355199102,1741000233134,-230.94,0.00024789,2]
[355199103,1741000233144,-230.94,0.00024789,2]
[355199104,1741000233156,-230.94,0.00024789,2]
[355199105,1741000233166,-230.94,0.00024789,2]
[355199106,1741000233177,-230.94,0.00024789,2]
[355199107,1741000233188,-230.94,0.00024789,2]
[355199108,1741000233198,-406.36109995,0.00024799,2]
[355199109,1741000233208,-183.74840574,0.00024799,2]
[355199110,1741000233219,-406.45728972,0.00024799,2]
[355199111,1741000233229,-171.03299525,0.000248,5]
[355199112,1741000233240,-554.84090925,0.000248,5]
[355199113,1741000233251,-200.0,0.000248,14]
[355199114,1741000233262,-268.88551744,0.000248,2]
[355199115,1741000233276,-222000.0,0.000248,2]
[355199116,1741000233285,-230.89,0.000249,7]
[355199117,1741000233295,-3000.0,0.000249,2]
[355199118,1741000233305,-268.88551741,0.000249,2]
[355199119,1741000233314,-2307.73173386,0.000249,4]
[355199120,1741000233324,-4825.51317159,0.000249,2]
[355199121,1741000233334,-606.68333513,0.00024961,2]
[355199122,1741000233343,-500.0,0.00024973,2]
[355199123,1741000233353,-500.0,0.00024973,2]
[355199124,1741000233362,-502.35894549,0.00024973,2]
[355199125,1741000233372,-500.0,0.00024973,2]
[355199126,1741000233381,-500.0,0.00024973,2]
[355199127,1741000233391,-500.0,0.00024973,2]
[355199128,1741000233402,-500.0,0.00024973,2]
[355199129,1741000233412,-500.0,0.00024973,2]
[355199130,1741000233422,-500.0,0.00024985,2]
[355199131,1741000233433,-214.23045878,0.00024999,2]
[355199132,1741000233447,-41495.58331724,0.00025,2]
[355199153,1741000238359,-153.96,0.00023737,2]
[355199155,1741000238370,-153.96,0.00024235,2]
[355199158,1741000238381,-153.96,0.0002462,2]
[355199160,1741000238391,-153.96,0.0002462,2]
[355199161,1741000238401,-153.96,0.0002462,2]
[355199164,1741000238411,-153.96,0.0002462,2]
[355199166,1741000238422,-153.96,0.00024779,2]
[355199168,1741000238432,-153.96,0.00024779,2]
[355199170,1741000238442,-500.0,0.00024788,2]
[355199172,1741000238455,-500.0,0.00024788,2]
[355199174,1741000238465,-500.0,0.00024788,2]
[355199176,1741000238475,-500.0,0.00024788,2]
[355199178,1741000238486,-500.0,0.00024788,2]
[355199180,1741000238496,-500.0,0.00024788,2]
[355199182,1741000238505,-500.0,0.00024788,2]
[355199184,1741000238516,-500.0,0.00024788,2]
[355199186,1741000238528,-500.0,0.00024788,2]
[355199188,1741000238538,-500.0,0.00024788,2]
[355199190,1741000238547,-500.0,0.00024788,2]
[355199192,1741000238557,-500.0,0.00024788,2]
[355199194,1741000238567,-500.0,0.00024788,2]
[355199196,1741000238576,-500.0,0.00024788,2]
[355199198,1741000238586,-153.96,0.00024789,2]
[355199200,1741000238596,-153.96,0.00024789,2]
[355199202,1741000238605,-153.96,0.00024789,2]
[355199204,1741000238615,-153.96,0.00024789,2]
[355199206,1741000238625,-153.96,0.00024789,2]
[355199208,1741000238635,-48560.67289216,0.00025,2]
[355199725,1741001443764,-6015.8517665,0.00023689,2]
[355199726,1741001443775,-1000.0,0.00024,24]
[355199727,1741001443785,-10015.43774933,0.000246,2]
[355199728,1741001443794,-153.96,0.00024689,2]
[355199729,1741001443804,-153.96,0.00024689,2]
[355199730,1741001443813,-153.96,0.00024689,2]
[355199731,1741001443822,-153.96,0.0002469,2]
[355199732,1741001443834,-153.96,0.0002469,2]
[355199733,1741001443845,-418.77,0.00024698,2]
[355199734,1741001443856,-500.0,0.00024698,2]
[355199735,1741001443866,-500.0,0.00024698,2]
[355199736,1741001443875,-500.0,0.00024698,2]
[355199737,1741001443887,-500.0,0.00024698,2]
[355199738,1741001443896,-500.0,0.00024698,2]
[355199739,1741001443905,-500.0,0.00024698,2]
[355199740,1741001443914,-500.0,0.00024698,2]
[355199741,1741001443924,-500.0,0.00024698,2]
[355199742,1741001443934,-500.0,0.00024698,2]
[355199743,1741001443943,-500.0,0.00024698,2]
[355199744,1741001443953,-500.0,0.00024698,2]
[355199745,1741001443963,-500.0,0.00024698,2]
[355199746,1741001443972,-500.0,0.00024698,2]
[355199747,1741001443981,-500.0,0.00024698,2]
[355199748,1741001443991,-500.0,0.00024698,2]
[355199749,1741001444001,-500.0,0.00024698,2]
[355199750,1741001444011,-500.0,0.00024698,2]
[355199751,1741001444021,-500.0,0.00024698,2]
[355199752,1741001444031,-500.0,0.00024698,2]
[355199753,1741001444040,-500.0,0.00024698,2]
[355199754,1741001444050,-500.0,0.00024698,2]
[355199755,1741001444059,-500.0,0.00024698,2]
[355199756,1741001444069,-157.47249512,0.00024698,2]
[355199757,1741001444079,-500.0,0.00024698,2]
[355199758,1741001444088,-500.0,0.00024698,2]
[355199759,1741001444097,-500.0,0.00024698,2]
[355199760,1741001444108,-500.0,0.00024698,2]
[355199761,1741001444118,-500.0,0.00024698,2]
[355199762,1741001444127,-500.0,0.00024698,2]
[355199763,1741001444136,-500.0,0.00024698,2]
[355199764,1741001444145,-500.0,0.00024698,2]
[355199765,1741001444155,-500.0,0.00024698,2]
[355199766,1741001444164,-500.0,0.00024698,2]
[355199767,1741001444173,-500.0,0.00024698,2]
[355199768,1741001444183,-500.0,0.00024698,2]
[355199769,1741001444192,-500.0,0.00024698,2]
[355199770,1741001444201,-500.0,0.00024698,2]
[355199771,1741001444210,-500.0,0.00024698,2]
[355199772,1741001444219,-284.5201028,0.00024699,2]
[355199773,1741001444231,-284.45276996,0.00024699,2]
[355199774,1741001444240,-8617.56257322,0.000247,2]
[355199811,1741001446552,-332.26848576,0.000247,2]
[355199874,1741002203449,9613.53071408,0.00021,5]
[355200015,1741002637705,-235.74,0.00022,7]
[355200017,1741002637716,-421.750521,0.00022244,2]
[355200018,1741002637726,-250.0,0.00022768,2]
[355200020,1741002637736,-155.103573,0.00023422,3]
[355200022,1741002637747,-300.0,0.00023499,2]
[355200024,1741002637756,-7061.62944731,0.000235,5]
[355200026,1741002637769,-22938.37055269,0.000235,5]
[355200028,1741002637778,-500.0,0.00023848,2]
[355200030,1741002637788,-500.0,0.00023848,2]
[355200032,1741002637798,-500.0,0.00023848,2]
[355200034,1741002637807,-500.0,0.00023848,2]
[355200035,1741002637816,-500.0,0.00023848,2]
[355200037,1741002637826,-365.74724951,0.00023848,2]
[355200039,1741002637836,-2688.83031484,0.00023849,2]
[355200085,1741002639982,-5346.17733826,0.00023849,2]
[355200087,1741002639993,-1115.8371923,0.0002389,2]
[355200089,1741002640002,-2312.33755591,0.000239,3]
[355200091,1741002640011,-199.16407196,0.00023999,2]
[355200093,1741002640021,-199.11693898,0.00023999,2]
[355200095,1741002640031,-277.42045463,0.00024,5]
[355200097,1741002640041,-56569.41536836,0.00024,2]
[355200099,1741002640050,-9529.4418552,0.00024,5]
[355200342,1741002645900,-4526.74414909,0.00024,5]
[355200423,1741003231033,500.0,0.00021,14]
[355200428,1741003337694,500.0,0.00021,7]
[355200594,1741003838070,-300.0,0.00023124,2]
[355200595,1741003838080,-19686.62882806,0.00023125,2]
[355200622,1741003840230,-4606.08050895,0.00023125,2]
[355200648,1741003843273,-279.512,0.00023125,2]
[355200700,1741003846359,-327.77866299,0.00023125,2]
[355200702,1741003846369,-168.738584,0.00023455,2]
[355200704,1741003846378,-160.778331,0.00023455,2]
[355200705,1741003846388,-156.00442194,0.000239,3]
[355200827,1741004919881,19511.83345323,0.000145,2]
[355200874,1741005032514,-2230.05949003,0.000229,3]
[355200876,1741005032524,-300.0,0.00022949,2]
[355200877,1741005032534,-18839.7811339,0.0002295,2]
[355200879,1741005032544,-166.855685,0.0002295,2]
[355200881,1741005032553,-277.42045462,0.00023,5]
[355200883,1741005032562,-318.41636106,0.00023871,2]
[355200885,1741005032573,-20364.0,0.00023872,2]
[355200887,1741005032593,-5000.0,0.00023872,2]
[355200888,1741005032615,-1582.017522,0.00023872,2]
[355200890,1741005032634,-4475.0,0.00023872,2]
[355200892,1741005032646,-315.33,0.0002399,3]
[355200894,1741005032658,-157.67,0.0002399,3]
[355200896,1741005032668,-473.02,0.0002399,3]
[355200898,1741005032678,-15943.81399571,0.00024,5]
[355200899,1741005032690,-20000.0,0.00024,2]
[355200902,1741005032701,-20000.0,0.00024,2]
[355200905,1741005032712,-154.057462,0.00024,7]
[355200908,1741005032722,-151.0,0.00024,7]
[355200911,1741005032733,-200.176039,0.00024,7]
[355200914,1741005032744,-307.6820456,0.00024,2]
[355200917,1741005032755,-153.0,0.00024,2]
[355200918,1741005032764,-151.0,0.00024,7]
[355200920,1741005032774,-151.351475,0.00024,7]
[355200922,1741005032783,-151.0,0.00024,7]
[355200924,1741005032792,-151.0,0.00024,7]
[355200925,1741005032801,-151.0,0.00024,7]
[355200927,1741005032811,-151.0,0.00024,7]
[355200929,1741005032820,-151.0,0.00024,7]
[355200931,1741005032829,-151.0,0.00024,7]
[355200933,1741005032838,-2250.871,0.00024,7]
[355200934,1741005032848,-2250.871,0.00024,7]
[355200936,1741005032857,-2250.871,0.00024,7]
[355200938,1741005032866,-2250.871,0.00024,7]
[355200940,1741005032876,-2250.871,0.00024,7]
[355200942,1741005032885,-2250.871,0.00024,7]
[355200943,1741005032894,-219.55720741,0.000244,2]
[355200945,1741005032904,-30000.0,0.000245,5]
[355200947,1741005032914,-151.0,0.000245,7]
[355200949,1741005032923,-151.0,0.000245,7]
[355200951,1741005032932,-2250.871,0.000245,7]
[355200953,1741005032941,-2250.871,0.000245,7]
[355200954,1741005032950,-219.55720741,0.00024523,2]
[355200956,1741005032959,-200.0,0.0002464,14]
[355200958,1741005032969,-186.67120626,0.00024658,2]